bitfinex-derivatives/quotes_BNBF0:USTF0_20250510
["timestamp","ask_amount","ask_price","bid_price","bid_amount"]
[1746872736214,0.30339345,659.21,658.57,0.92841257]
[1746872736413,0.30339345,659.21,658.58,0.92841257]
[1746872736611,0.30339345,659.21,658.43,0.329]
[1746872736809,0.30339345,659.21,658.44,0.92804811]
[1746872737112,0.30339345,659.21,658.45,0.92804811]
[1746872737311,0.30339345,659.21,658.46,0.92804811]
[1746872737510,0.30339345,659.21,658.47,0.9277432]
[1746872737714,0.30339345,659.21,658.48,0.9277432]
[1746872738016,0.30339345,659.21,658.49,0.9277432]
[1746872738215,0.30339345,659.21,658.5,0.9277432]
[1746872738416,0.30339345,659.21,658.51,0.9277432]
[1746872738616,0.30339345,659.21,658.52,0.9277432]
[1746872738813,0.30339345,659.21,658.53,0.9277432]
[1746872739014,0.30339345,659.21,658.54,0.9277432]
[1746872739215,0.30339345,659.21,658.55,0.9277432]
[1746872739415,0.30339345,659.21,658.38,0.26401639]
[1746872739611,0.30339345,659.21,658.39,0.92754059]
[1746872739810,0.30339345,659.21,658.4,0.92754059]
[1746872740010,0.30339345,659.21,658.41,0.92754059]
[1746872740314,0.30339345,659.21,658.42,0.92754059]
[1746872740511,0.30339345,659.21,658.43,0.92754059]
[1746872740711,0.30339345,659.21,658.44,0.92754059]
[1746872740910,0.30339345,659.21,658.45,0.92754059]
[1746872741113,0.30339345,659.21,658.46,0.92754059]
[1746872741314,0.30339345,659.21,658.47,0.92754059]
[1746872741516,0.30339345,659.21,658.48,0.92754059]
[1746872741812,0.30339345,659.21,658.49,0.92754059]
[1746872742016,0.30339345,659.21,658.5,0.92754059]
[1746872742213,0.30339345,659.21,658.51,0.92754059]
[1746872742412,0.30339345,659.21,658.52,0.92754059]
[1746872742610,0.30339345,659.21,658.53,0.92754059]
[1746872742814,0.30339345,659.21,658.46,0.406]
[1746872743014,0.30339345,659.21,658.47,0.92695869]
[1746872743212,0.30339345,659.21,658.48,0.92695869]
[1746872743516,0.30339345,659.21,658.49,0.92695869]
[1746872743717,0.30339345,659.21,658.5,0.92695869]
[1746872744018,0.30339345,659.21,658.51,0.92695869]
[1746872744219,0.30339345,659.21,658.52,0.92695869]
[1746872744420,0.30339345,659.21,658.46,0.406]
[1746872744617,0.30339345,659.21,658.47,0.9268753]
[1746872744818,0.30339345,659.21,658.48,0.9268753]
[1746872745020,0.30339345,659.21,658.49,0.9268753]
[1746872745319,0.30339345,659.21,658.46,0.406]
[1746872745519,0.30339345,659.21,658.47,0.92688515]
[1746872745714,0.30339345,659.21,658.48,0.92688515]
[1746872745920,0.30339345,659.21,658.46,0.406]
[1746872746117,0.30339345,659.21,658.47,0.92650911]
[1746872746322,0.30339345,659.21,658.48,0.92650911]
[1746872746517,0.30339345,659.21,658.46,0.406]
[1746872746717,0.30339345,659.21,658.47,0.92649682]
[1746872746921,0.30339345,659.21,658.46,0.406]
[1746872747121,0.30339345,659.21,658.47,0.92650099]
[1746872747323,0.30339345,659.21,658.46,0.406]
[1746872754225,0.30339345,659.21,658.45,0.378]
[1746872754226,0.30339345,659.21,658.31,0.26407048]
[1746872754526,0.30339345,659.21,658.32,0.92690447]
[1746872754726,0.30339345,659.21,658.33,0.92690447]
[1746872755022,0.30339345,659.21,658.34,0.92690447]
[1746872755223,0.30339345,659.21,658.35,0.92690447]
[1746872755429,0.30339345,659.21,658.36,0.92690447]
[1746872755621,0.30339345,659.21,658.31,0.26407048]
[1746872756224,0.30339345,659.21,658.32,0.92702572]
[1746872756428,0.30339345,659.21,658.33,0.92702572]
[1746872756621,0.30339345,659.21,658.31,0.453]
[1746872756826,0.30339345,659.21,658.32,0.92704333]
[1746872757122,0.30339345,659.21,658.31,0.453]
[1746872757322,0.30339345,659.21,658.32,0.92704586]
[1746872757523,0.30339345,659.21,658.31,0.453]
[1746872757726,0.30339345,659.21,658.32,0.92703714]
[1746872757929,0.30339345,659.21,658.31,0.453]
[1746872758129,0.30339345,659.21,658.32,0.92703561]
[1746872758329,0.30339345,659.21,658.31,0.935]
[1746872758530,0.30339345,659.21,658.32,0.9270245]
[1746872758730,0.30339345,659.21,658.33,0.9270194]
[1746872758931,0.30339345,659.21,658.31,0.935]
[1746872759135,0.30339345,659.21,658.32,0.9270194]
[1746872759330,0.30339345,659.21,658.31,0.935]
[1746872759532,0.30339345,659.21,658.32,0.92701006]
[1746872759731,0.30339345,659.21,658.31,0.935]
[1746872759933,0.30339345,659.21,658.32,0.92700996]
[1746872760228,0.30339345,659.21,658.31,0.935]
[1746872760431,0.30339345,659.21,658.32,0.92700997]
[1746872760633,0.30339345,659.21,658.31,0.935]
[1746872760833,0.30339345,659.21,658.32,0.92697949]
[1746872761030,0.30339345,659.21,658.31,0.935]
[1746872761235,0.30339345,659.21,658.32,0.92697931]
[1746872761430,0.30339345,659.21,658.33,0.92696818]
[1746872761630,0.30339345,659.21,658.31,0.935]
[1746872761833,0.30339345,659.21,658.32,0.92697302]
[1746872762035,0.30339345,659.21,658.33,0.92697302]
[1746872762233,0.30339345,659.21,658.31,0.935]
[1746872762533,0.30339345,659.21,658.32,0.92696257]
[1746872762834,0.30339345,659.21,658.33,0.92696257]
[1746872763037,0.30339345,659.21,658.31,0.935]
[1746872763236,0.30339345,659.21,658.32,0.9269607]
[1746872763435,0.30339345,659.21,658.33,0.92695156]
[1746872763635,0.30339345,659.21,658.31,0.935]
[1746872763837,0.30339345,659.21,658.32,0.92695119]
[1746872764031,0.30339345,659.21,658.33,0.92695119]
[1746872764232,0.30339345,659.21,658.34,0.92695119]
[1746872764535,0.30339345,659.21,658.31,0.935]
[1746872764733,0.30339345,659.21,658.32,0.92694071]
[1746872764935,0.30339345,659.21,658.33,0.92694071]
[1746872765137,0.30339345,659.21,658.31,0.935]
[1746872765336,0.30339345,659.21,658.32,0.92695071]
[1746872765532,0.30339345,659.21,658.33,0.92695071]
[1746872765732,0.30339345,659.21,658.31,0.935]
[1746872765936,0.30339345,659.21,658.32,0.92697737]
[1746872766131,0.30339345,659.21,658.33,0.92697737]
[1746872766335,0.30339345,659.21,658.31,0.935]
[1746872766632,0.30339345,659.21,658.32,0.9269863]
[1746872766832,0.30339345,659.21,658.33,0.9269863]
[1746872767035,0.30339345,659.21,658.31,0.935]
[1746872767235,0.30339345,659.21,658.32,0.92698463]
[1746872767435,0.30339345,659.21,658.31,0.935]
[1746872767436,0.30339345,659.21,658.33,0.92698463]
[1746872767639,0.30339345,659.21,658.34,0.92697596]
[1746872767838,0.30339345,659.21,658.31,0.935]
[1746872768039,0.30339345,659.21,658.32,0.92698265]
[1746872768240,0.30339345,659.21,658.33,0.92698265]
[1746872768440,0.30339345,659.21,658.31,0.935]
[1746872768637,0.30339345,659.21,658.32,0.92698888]
[1746872768841,0.30339345,659.21,658.33,0.92698773]
[1746872769035,0.30339345,659.21,658.31,0.935]
[1746872769236,0.30339345,659.21,658.32,0.92699281]
[1746872769541,0.30339345,659.21,658.33,0.92699281]
[1746872769743,0.30339345,659.21,658.31,0.935]
[1746872769938,0.30339345,659.21,658.32,0.92699048]
[1746872770242,0.30339345,659.21,658.33,0.92699048]
[1746872770541,0.30339345,659.21,658.31,0.935]
[1746872770741,0.30339345,659.21,658.32,0.92698609]
[1746872770937,0.30339345,659.21,658.33,0.92698609]
[1746872771142,0.30339345,659.21,658.31,0.935]
[1746872771343,0.30339345,659.21,658.32,0.92699477]
[1746872771544,0.30339345,659.21,658.33,0.92699477]
[1746872771737,0.30339345,659.21,658.34,0.92699477]
[1746872771938,0.30339345,659.21,658.35,0.92699477]
[1746872772138,0.30339345,659.21,658.36,0.92699477]
[1746872772338,0.30339345,659.21,658.37,0.92699477]
[1746872772542,0.30339345,659.21,658.38,0.92699477]
[1746872772739,0.30339345,659.21,658.31,0.482]
[1746872772943,0.30339345,659.21,658.32,0.92693511]
[1746872773139,0.30339345,659.21,658.33,0.92693511]
[1746872773439,0.30339345,659.21,658.34,0.92693511]
[1746872773742,0.30339345,659.21,658.35,0.92693511]
[1746872773942,0.30339345,659.21,658.36,0.92693511]
[1746872774143,0.30339345,659.21,658.37,0.92693511]
[1746872774343,0.30339345,659.21,658.38,0.92693511]
[1746872774544,0.30339345,659.21,658.31,0.482]
[1746872774744,0.30339345,659.21,658.32,0.92547776]
[1746872774948,0.30339345,659.21,658.33,1.36047776]
[1746872775147,0.30339345,659.21,658.34,0.92547776]
[1746872775348,0.30339345,659.21,658.35,0.92547776]
[1746872775647,0.30339345,659.21,658.36,0.92547776]
[1746872775847,0.30339345,659.21,658.37,0.92547776]
[1746872776049,0.30339345,659.21,658.38,0.92547776]
[1746872776346,0.30339345,659.21,658.39,0.92547776]
[1746872776543,0.30339345,659.21,658.4,0.92547776]
[1746872776741,0.30339345,659.21,658.41,0.92547776]
[1746872776946,0.30339345,659.21,658.33,0.435]
[1746872777146,0.30339345,659.21,658.34,0.92545117]
[1746872777343,0.30339345,659.21,658.35,0.92545117]
[1746872777646,0.30339345,659.21,658.36,0.92545117]
[1746872777842,0.30339345,659.21,658.33,0.435]
[1746872777843,0.30339345,659.21,658.37,0.92545117]
[1746872778048,0.30339345,659.21,658.38,0.92545117]
[1746872778245,0.30339345,659.21,658.39,0.92545117]
[1746872778449,0.30339345,659.21,658.4,0.92545117]
[1746872778649,0.30339345,659.21,658.41,0.92545117]
[1746872778849,0.30339345,659.21,658.42,0.92545117]
[1746872779050,0.30339345,659.21,658.43,0.92545117]
[1746872779251,0.30339345,659.21,658.44,0.92545117]
[1746872779452,0.30339345,659.21,658.45,0.92545117]
[1746872779655,0.30339345,659.21,658.46,0.92545117]
[1746872779850,0.30339345,659.21,658.47,0.92545117]
[1746872780047,0.30339345,659.21,658.48,0.92545117]
[1746872780248,0.30339345,659.21,658.49,0.92545117]
[1746872780452,0.30339345,659.21,658.33,0.435]
[1746872780758,0.30339345,659.21,658.34,0.92525813]
[1746872780948,0.30339345,659.21,658.35,0.92525813]
[1746872781154,0.30339345,659.21,658.36,0.92525813]
[1746872781350,0.30339345,659.21,658.37,0.92525813]
[1746872781652,0.30339345,659.21,658.38,0.92525813]
[1746872781853,0.30339345,659.21,658.39,0.92525813]
[1746872782054,0.30339345,659.21,658.4,0.92525813]
[1746872782254,0.30339345,659.21,658.41,0.92525813]
[1746872782455,0.30339345,659.21,658.4,0.423]
[1746872784858,0.26397133,659.2,658.4,0.423]
[1746872785157,0.30340266,659.19,658.4,0.423]
[1746872787758,0.26406246,659.18,658.4,0.423]
[1746872788258,0.30341186,659.17,658.4,0.423]
[1746872790861,0.26403542,659.16,658.4,0.423]
[1746872791063,0.30342107,659.15,658.4,0.423]
[1746872793964,0.26381424,659.14,658.4,0.423]
[1746872794159,0.30343027,659.13,658.4,0.423]
[1746872796961,0.26403942,659.12,658.4,0.423]
[1746872797165,0.30343948,659.11,658.4,0.423]
[1746872799868,0.26404443,659.1,658.4,0.423]
[1746872800167,0.30344869,659.09,658.4,0.423]
[1746872802869,0.26398534,659.08,658.4,0.423]
[1746872803069,0.3034579,659.07,658.4,0.423]
[1746872805967,0.26398935,659.06,658.4,0.423]
[1746872806173,0.30346711,659.05,658.4,0.423]
[1746872807972,0.2641687,659.04,658.4,0.423]
[1746872808174,0.30347632,659.03,658.4,0.423]
[1746872810873,0.26417071,659.02,658.4,0.423]
[1746872811077,0.30348553,659.01,658.4,0.423]
[1746872819574,0.30348553,659.01,658.41,0.348]
[1746872827693,0.30348553,659.01,658.42,0.372]
[1746872856913,0.2640815,659.0,658.42,0.372]
[1746872857510,0.25652049,658.99,658.42,0.372]
[1746872859316,0.25652049,659.0,658.42,0.372]
[1746872859911,0.26419377,658.99,658.42,0.372]
[1746872860307,0.25652049,658.98,658.42,0.372]
[1746872861013,0.30350395,658.97,658.42,0.372]
[1746872861613,0.25652049,658.96,658.42,0.372]
[1746872862111,0.30350395,658.97,658.42,0.372]
[1746872862414,0.30350395,658.97,658.43,0.421]
[1746872862610,0.25648619,658.96,658.43,0.421]
[1746872862913,0.52062482,658.96,658.43,0.421]
[1746872863115,0.30351316,658.95,658.43,0.421]
[1746872863709,0.55999935,658.95,658.43,0.421]
[1746872864014,0.25648619,658.94,658.43,0.421]
[1746872865913,0.26419478,658.93,658.43,0.421]
[1746872866113,0.25648619,658.92,658.43,0.421]
[1746872866715,0.30353159,658.91,658.43,0.421]
[1746872867212,0.25648619,658.9,658.43,0.421]
[1746872867516,0.3035408,658.89,658.43,0.421]
[1746872867816,0.25648619,658.88,658.43,0.421]
[1746872868015,0.30355001,658.87,658.43,0.421]
[1746872868612,0.25648619,658.86,658.43,0.421]
[1746872868817,0.30355923,658.85,658.43,0.421]
[1746872869411,0.30355923,658.85,658.43,0.922]
[1746872872516,0.26411858,658.84,658.43,0.922]
[1746872872714,0.30356844,658.83,658.43,0.922]
[1746872913946,0.2641256,658.82,658.43,0.922]
[1746872914146,0.30357766,658.81,658.43,0.922]
[1746872960976,0.26421684,658.8,658.43,0.922]
[1746872962973,0.30358687,658.79,658.43,0.922]
[1746872965075,0.26391728,658.78,658.43,0.922]
[1746872965274,0.30359609,658.77,658.43,0.922]
[1746872967176,0.26425295,658.76,658.43,0.922]
[1746872967382,0.30360531,658.75,658.43,0.922]
[1746872971785,0.25656967,658.74,658.43,0.922]
[1746872971984,0.30361453,658.73,658.43,0.922]
[1746872972988,0.26426098,658.72,658.43,0.922]
[1746872973188,0.30362374,658.71,658.43,0.922]
[1746872977195,0.25657871,658.7,658.43,0.922]
[1746872977889,0.30363296,658.69,658.43,0.922]
[1746872978691,0.25657871,658.68,658.43,0.922]
[1746872978892,0.30364218,658.67,658.43,0.922]
[1746872979298,0.25657871,658.66,658.43,0.922]
[1746872979696,0.3036514,658.65,658.43,0.922]
[1746872979995,0.56793345,658.65,658.43,0.922]
[1746872980197,0.25657871,658.64,658.43,0.922]
[1746872980395,0.30366062,658.63,658.43,0.922]
[1746872981196,0.25657871,658.62,658.43,0.922]
[1746872981399,0.30366985,658.61,658.43,0.922]
[1746872981894,0.25657871,658.6,658.43,0.922]
[1746872982093,0.52086979,658.6,658.43,0.922]
[1746872982291,0.30367907,658.59,656.95,0.96602227]
[1746872982792,0.30367907,658.59,656.96,0.2792137]
[1746872982996,0.30367907,658.59,656.96,0.54365541]
[1746872983395,0.30367907,658.59,656.97,0.2792137]
[1746872983795,0.30367907,658.59,656.96,0.26444171]
[1746872983994,0.30367907,658.59,656.98,0.83021366]
[1746872984298,0.30367907,658.59,656.99,0.27921366]
[1746872984597,0.30367907,658.59,657.0,0.27921366]
[1746872984894,0.30367907,658.59,657.01,0.27921366]
[1746872985199,0.25658787,658.58,657.02,0.27921366]
[1746872985498,0.3036929,658.56,657.03,0.70021366]
[1746872985699,0.3036929,658.56,657.04,0.27921366]
[1746872985997,0.26443568,658.55,657.04,0.27921366]
[1746872986198,0.30370674,658.53,657.04,0.27921366]
[1746872988197,0.26443869,658.52,657.04,0.27921366]
[1746872988497,0.30372057,658.5,657.04,0.27921366]
[1746872989599,0.30372057,658.5,657.03,0.421]
[1746872989898,0.30372057,658.5,657.04,0.27922005]
[1746872999805,0.30372057,658.5,657.05,0.423]
[1746873000306,0.30372057,658.5,657.06,0.27922005]
[1746873000602,0.30372057,658.5,657.07,0.27922005]
[1746873001106,0.30372057,658.5,657.08,0.27922005]
[1746873001408,0.30372057,658.5,657.09,0.27922005]
[1746873001805,0.30372057,658.5,657.1,0.27922005]
[1746873002110,0.30372057,658.5,657.14,0.96602227]
[1746873002507,0.30372057,658.5,657.15,0.27922005]
[1746873004716,0.30372057,658.5,657.15,0.96602227]
[1746873005115,0.30372057,658.5,657.16,0.27917807]
[1746873005716,0.30372057,658.5,657.17,0.27917807]
[1746873006516,0.30372057,658.5,657.18,0.27917807]
[1746873006919,0.30372057,658.5,657.21,0.96602227]
[1746873007220,0.30372057,658.5,657.22,0.27917807]
[1746873009415,0.30372057,658.5,657.16,0.27917807]
[1746873017322,0.30372057,658.5,657.17,0.27917807]
[1746873017517,0.30372057,658.5,657.15,1.23034648]
[1746873017720,0.30372057,658.5,657.14,0.96602227]
[1746873017921,0.30372057,658.5,657.16,0.27918]
[1746873018120,0.30372057,658.5,657.17,0.27918]
[1746873018518,0.30372057,658.5,657.18,0.27918]
[1746873018823,0.30372057,658.5,657.19,0.27918]
[1746873019221,0.30372057,658.5,657.2,0.27918]
[1746873019922,0.30372057,658.5,657.16,0.27918]
[1746873020223,0.30372057,658.5,657.17,0.27918]
[1746873020524,0.30372057,658.5,657.22,0.96602227]
[1746873021023,0.30372057,658.5,657.23,0.27918]
[1746873023325,0.30372057,658.5,657.23,1.24520227]
[1746873023624,0.30372057,658.5,657.24,0.27918]
[1746873026228,0.30372057,658.5,657.22,0.27918]
[1746873027132,0.30372057,658.5,657.23,0.27918]
[1746873027534,0.30372057,658.5,657.24,0.27918]
[1746873028034,0.30372057,658.5,657.25,0.27918]
[1746873028435,0.30372057,658.5,657.26,0.27918]
[1746873028735,0.30372057,658.5,657.21,0.84128807]
[1746873029034,0.30372057,658.5,657.22,0.27910673]
[1746873029738,0.30372057,658.5,657.23,0.27910673]
[1746873030040,0.30372057,658.5,657.24,0.27910673]
[1746873030339,0.30372057,658.5,657.37,0.96602227]
[1746873030940,0.30372057,658.5,657.38,0.27910673]
[1746873032741,0.30372057,658.5,657.31,0.27910673]
[1746873035342,0.30372057,658.5,657.26,0.27910673]
[1746873035944,0.30372057,658.5,657.27,0.27910673]
[1746873036143,0.30372057,658.5,657.28,0.27910673]
[1746873036742,0.30372057,658.5,657.29,1.20354278]
[1746873036942,0.30372057,658.5,657.3,1.20354278]
[1746873037144,0.30372057,658.5,657.31,0.92443605]
[1746873037344,0.30372057,658.5,657.32,0.92443605]
[1746873037543,0.30372057,658.5,657.33,0.92443605]
[1746873037742,0.30372057,658.5,657.34,0.92443605]
[1746873037943,0.30372057,658.5,657.35,0.92443605]
[1746873038145,0.30372057,658.5,657.36,0.92443605]
[1746873038446,0.30372057,658.5,657.37,0.92443605]
[1746873038647,0.30372057,658.5,657.38,0.92443605]
[1746873038844,0.30372057,658.5,657.39,0.92443605]
[1746873039147,0.30372057,658.5,657.4,0.92443605]
[1746873039347,0.30372057,658.5,657.41,1.2047883]
[1746873039546,0.30372057,658.5,657.42,1.2047883]
[1746873039743,0.30372057,658.5,657.43,0.92568157]
[1746873039946,0.30372057,658.5,657.44,0.92568157]
[1746873040148,0.30372057,658.5,657.45,0.92568157]
[1746873040348,0.30372057,658.5,657.46,0.92568157]
[1746873040649,0.30372057,658.5,657.47,0.92568157]
[1746873040849,0.30372057,658.5,657.48,1.20474364]
[1746873041044,0.30372057,658.5,657.49,0.92568157]
[1746873041342,0.30372057,658.5,657.5,0.92568157]
[1746873041643,0.30372057,658.5,657.51,0.92568157]
[1746873041845,0.30372057,658.5,657.52,1.20474364]
[1746873042046,0.30372057,658.5,657.53,0.92568157]
[1746873042246,0.30372057,658.5,657.54,0.92568157]
[1746873042444,0.30372057,658.5,657.55,1.53768157]
[1746873042649,0.30372057,658.5,657.56,0.92568157]
[1746873042946,0.30372057,658.5,657.57,0.92568157]
[1746873043148,0.30372057,658.5,657.58,0.92568157]
[1746873043348,0.30372057,658.5,657.59,0.92568157]
[1746873043551,0.30372057,658.5,657.6,0.27906207]
[1746873043747,0.30372057,658.5,657.61,0.92568157]
[1746873043951,0.30372057,658.5,657.62,0.27906207]
[1746873044251,0.30372057,658.5,657.63,0.92568157]
[1746873044550,0.30372057,658.5,657.64,0.27906207]
[1746873044747,0.30372057,658.5,657.65,0.92568157]
[1746873045052,0.30372057,658.5,657.66,0.27906207]
[1746873045253,0.30372057,658.5,657.67,0.92568157]
[1746873045453,0.30372057,658.5,657.68,0.27906207]
[1746873045654,0.30372057,658.5,657.69,0.92568157]
[1746873046256,0.30372057,658.5,657.7,0.92575879]
[1746873046554,0.30372057,658.5,657.71,0.92575879]
[1746873046756,0.30372057,658.5,657.72,0.92575879]
[1746873046954,0.30372057,658.5,657.73,0.92575879]
[1746873047154,0.30372057,658.5,657.74,0.92568411]
[1746873047354,0.30372057,658.5,657.55,0.612]
[1746873047355,0.30372057,658.5,657.75,1.20474618]
[1746873047550,0.30372057,658.5,657.76,0.92568411]
[1746873047849,0.30372057,658.5,657.77,0.92568411]
[1746873048055,0.30372057,658.5,657.78,0.92568411]
[1746873048251,0.30372057,658.5,657.79,0.92568411]
[1746873048453,0.30372057,658.5,657.8,0.92568411]
[1746873048649,0.30372057,658.5,657.81,0.92568411]
[1746873048849,0.30372057,658.5,657.82,0.92568411]
[1746873049153,0.30372057,658.5,657.83,0.92568411]
[1746873049355,0.30372057,658.5,657.84,0.92568411]
[1746873049554,0.30372057,658.5,657.85,1.20474618]
[1746873049753,0.30372057,658.5,657.86,0.92568411]
[1746873049952,0.30372057,658.5,657.87,0.92554538]
[1746873050158,0.30372057,658.5,657.88,1.20460745]
[1746873050353,0.30372057,658.5,657.89,0.92554538]
[1746873050553,0.30372057,658.5,657.89,1.20460745]
[1746873050754,0.30372057,658.5,657.9,0.92554538]
[1746873051658,0.30372057,658.5,657.9,1.20460745]
[1746873051852,0.30372057,658.5,657.91,0.92554538]
[1746873052057,0.30372057,658.5,657.92,0.92554538]
[1746873052354,0.30372057,658.5,657.93,1.20460745]
[1746873052559,0.30372057,658.5,657.94,1.20460641]
[1746873052754,0.30372057,658.5,657.95,0.92554434]
[1746873052954,0.30372057,658.5,657.95,1.20460641]
[1746873053257,0.30372057,658.5,657.96,1.20460641]
[1746873053457,0.30372057,658.5,657.97,1.20460988]
[1746873053658,0.30372057,658.5,657.98,0.92554781]
[1746873053958,0.30372057,658.5,657.98,0.27906207]
[1746873054155,0.30372057,658.5,657.8,0.27906207]
[1746873054457,0.30372057,658.5,657.81,0.92550339]
[1746873054658,0.30372057,658.5,657.82,0.92550339]
[1746873054959,0.30372057,658.5,657.83,0.92550339]
[1746873055260,0.30372057,658.5,657.84,0.92550339]
[1746873055558,0.30372057,658.5,657.85,0.92550339]
[1746873055859,0.30372057,658.5,657.86,0.92550339]
[1746873056058,0.30372057,658.5,657.87,0.92550339]
[1746873056361,0.30372057,658.5,657.88,1.20456546]
[1746873056559,0.30372057,658.5,657.89,0.92550339]
[1746873056859,0.30372057,658.5,657.89,0.27906207]
[1746873057161,0.30372057,658.5,657.9,1.20448235]
[1746873057359,0.30372057,658.5,657.91,0.92542028]
[1746873057664,0.30372057,658.5,657.92,0.92542028]
[1746873057856,0.30372057,658.5,657.93,1.20448235]
[1746873058058,0.30372057,658.5,657.94,0.92542028]
[1746873058258,0.30372057,658.5,657.95,0.92542028]
[1746873058456,0.30372057,658.5,657.96,0.92542028]
[1746873058756,0.30372057,658.5,657.97,1.20448235]
[1746873058957,0.30372057,658.5,657.98,0.92542028]
[1746873059162,0.30372057,658.5,657.99,0.92542028]
[1746873059360,0.30372057,658.5,657.98,0.27906207]
[1746873059562,0.30372057,658.5,658.0,0.27906207]
[1746873059763,0.30372057,658.5,657.84,0.27906207]
[1746873060061,0.30372057,658.5,657.9,0.26423189]
[1746873060260,0.30372057,658.5,657.91,0.92540233]
[1746873060562,0.30372057,658.5,657.92,0.92540233]
[1746873060762,0.30372057,658.5,657.93,0.92540233]
[1746873060958,0.30372057,658.5,657.94,0.92540233]
[1746873061162,0.30372057,658.5,657.95,0.92540233]
[1746873061358,0.30372057,658.5,657.96,0.92540233]
[1746873061557,0.30372057,658.5,657.97,0.92540233]
[1746873061762,0.30372057,658.5,657.98,0.9254107]
[1746873061963,0.30372057,658.5,657.97,0.27906207]
[1746873062159,0.30372057,658.5,657.98,0.92540039]
[1746873062360,0.30372057,658.5,657.9,0.26423189]
[1746873062560,0.30372057,658.5,657.91,0.92539937]
[1746873062765,0.30372057,658.5,657.92,0.92539937]
[1746873062965,0.30372057,658.5,657.93,0.92539937]
[1746873063168,0.30372057,658.5,657.94,0.92539937]
[1746873063366,0.30372057,658.5,657.95,0.92539937]
[1746873063666,0.30372057,658.5,657.96,0.92539937]
[1746873063866,0.30372057,658.5,657.97,0.92539937]
[1746873064370,0.30372057,658.5,657.98,0.92539937]
[1746873064568,0.30372057,658.5,657.99,0.92539937]
[1746873064770,0.30372057,658.5,657.9,0.26423189]
[1746873064970,0.30372057,658.5,657.91,0.92552731]
[1746873065166,0.30372057,658.5,657.92,0.92552731]
[1746873065371,0.30372057,658.5,657.93,0.92552731]
[1746873065667,0.30372057,658.5,657.94,0.27904261]
[1746873065865,0.30372057,658.5,657.95,0.92552731]
[1746873066471,0.30372057,658.5,657.96,0.27904261]
[1746873066768,0.30372057,658.5,657.97,0.92552731]
[1746873067567,0.30372057,658.5,657.98,0.27904261]
[1746873067770,0.30372057,658.5,657.99,0.92552731]
[1746873068169,0.30372057,658.5,658.0,0.27904261]
[1746873068368,0.30372057,658.5,658.01,0.92552731]
[1746873069173,0.30372057,658.5,658.02,0.92552731]
[1746873069469,0.30372057,658.5,658.03,0.92552731]
[1746873069676,0.30372057,658.5,658.04,0.92552731]
[1746873070172,0.30372057,658.5,658.05,0.92552731]
[1746873070376,0.30372057,658.5,658.06,0.92552731]
[1746873070576,0.30372057,658.5,658.07,0.92552731]
[1746873070876,0.30372057,658.5,657.96,0.26413362]
[1746873071072,0.30372057,658.5,657.97,1.20506783]
[1746873071274,0.30372057,658.5,657.98,0.92604459]
[1746873071577,0.30372057,658.5,657.98,1.20506783]
[1746873071775,0.30372057,658.5,657.99,1.20506783]
[1746873071975,0.30372057,658.5,658.0,0.92604459]
[1746873072170,0.30372057,658.5,658.01,0.92588204]
[1746873072369,0.30372057,658.5,658.02,1.20490528]
[1746873072676,0.30372057,658.5,657.62,0.586]
[1746873072677,0.30372057,658.5,658.03,1.20490528]
[1746873072975,0.30372057,658.5,658.04,0.92588204]
[1746873073378,0.30372057,658.5,658.05,0.92588204]
[1746873073574,0.30372057,658.5,658.06,0.92588204]
[1746873073771,0.30372057,658.5,657.99,0.26413362]
[1746873073975,0.30372057,658.5,658.0,0.92604769]
[1746873074175,0.30372057,658.5,658.01,0.92604769]
[1746873074375,0.30372057,658.5,658.02,0.92604769]
[1746873074578,0.30372057,658.5,658.03,0.92604769]
[1746873074778,0.30372057,658.5,658.04,0.92604769]
[1746873075077,0.30372057,658.5,658.05,0.92604769]
[1746873075277,0.30372057,658.5,658.06,0.92604769]
[1746873075478,0.30372057,658.5,658.07,0.92604769]
[1746873075677,0.30372057,658.5,658.08,0.92604769]
[1746873075878,0.30372057,658.5,658.01,0.26419377]
[1746873076079,0.30372057,658.5,658.02,0.9263011]
[1746873076278,0.30372057,658.5,658.03,0.9263011]
[1746873076474,0.30372057,658.5,658.04,0.9263011]
[1746873076674,0.30372057,658.5,658.05,0.9263011]
[1746873076878,0.30372057,658.5,658.06,0.9263011]
[1746873077174,0.30372057,658.5,658.07,0.9263011]
[1746873077377,0.30372057,658.5,658.08,0.9263011]
[1746873077579,0.30372057,658.5,658.09,0.92658895]
[1746873077778,0.30372057,658.5,658.1,0.92655534]
[1746873077974,0.30372057,658.5,658.11,0.92652921]
[1746873078180,0.30372057,658.5,658.04,0.26418274]
[1746873078377,0.30372057,658.5,658.05,0.92652746]
[1746873078580,0.30372057,658.5,658.06,0.92652746]
[1746873078882,0.30372057,658.5,658.07,0.92652746]
[1746873079084,0.30372057,658.5,658.08,0.92664982]
[1746873079380,0.30372057,658.5,658.09,0.92664982]